fUSD/lending_fUSD_20251011
["ID","MTS","AMOUNT","RATE_DAILY","PERIOD"]
[390883980,1760193040324,-76.33427064,0.00014898,2]
[390884178,1760193045631,-2256.3,0.00014898,2]
[390884179,1760193045825,-3353.272448,0.00014898,2]
[390884180,1760193045837,-2220.75148885,0.00014898,2]
[390884181,1760193045898,-2734.23000001,0.00014898,2]
[390884182,1760193045911,-1226.65,0.00014898,2]
[390884188,1760193124815,280.04006259,0.00027397,120]
[390884247,1760193366145,509.29,0.00027397,120]
[390884248,1760193368781,10000.0,0.0002739,120]
[390884268,1760193516731,500.0,0.00027397,120]
[390884270,1760193527698,500.0,0.00027397,120]
[390884272,1760193548073,341.7002,0.00027397,120]
[390884321,1760193819342,4000.0,0.00016,90]
[390884323,1760193834751,4000.0,0.00016,60]
[390884330,1760193855363,4690.47,0.000161,30]
[390884335,1760193909392,503.0,0.0002739,120]
[390884362,1760194112662,-153.5782,0.00013597,2]
[390884363,1760194112685,-251.03863742,0.00013683,2]
[390884364,1760194116427,-48.96136258,0.00013683,2]
[390884365,1760194116454,-150.0,0.00013683,2]
[390884366,1760194116478,-301.03863742,0.00013683,2]
[390884367,1760194117783,-198.96136258,0.00013683,2]
[390884368,1760194117806,-301.03863742,0.00013683,2]
[390884372,1760194124327,-198.96136258,0.00013683,2]
[390884373,1760194124351,-51.03863742,0.00013683,2]
[390884374,1760194125760,-448.96136258,0.00013683,2]
[390884375,1760194125785,-500.0,0.00013683,2]
[390884376,1760194125809,-500.0,0.00013683,2]
[390884377,1760194125832,-500.0,0.00013683,2]
[390884378,1760194125856,-274.1442547,0.00013683,2]
[390884381,1760194142868,-300.0,0.00013682,2]
[390884382,1760194142894,-225.8557453,0.00013683,2]
[390884383,1760194142919,-500.0,0.00013683,2]
[390884384,1760194142943,-500.0,0.00013683,2]
[390884385,1760194142968,-500.0,0.00013683,2]
[390884386,1760194142993,-500.0,0.00013683,2]
[390884387,1760194143017,-500.0,0.00013683,2]
[390884388,1760194143044,-500.0,0.00013683,2]
[390884389,1760194143068,-500.0,0.00013683,2]
[390884390,1760194143093,-500.0,0.00013683,2]
[390884391,1760194143117,-500.0,0.00013683,2]
[390884392,1760194143142,-449.09223143,0.00013683,2]
[390884393,1760194143164,-511.81856531,0.00013683,2]
[390884394,1760194143187,-181.32137211,0.00013683,2]
[390884395,1760194143209,-1200.0,0.00013685,2]
[390884396,1760194143232,-250.0,0.00013698,2]
[390884397,1760194143254,-351.07,0.00013724,2]
[390884398,1760194143276,-250.0,0.00013808,7]
[390884399,1760194143298,-200.0,0.0001394,2]
[390884400,1760194143320,-160.64,0.00014006,2]
[390884401,1760194143342,-248.71531821,0.00014225,2]
[390884402,1760194143364,-382.83475749,0.00014225,2]
[390884403,1760194148619,-7160.51206652,0.00014225,2]
[390884404,1760194148640,-151.0,0.00014249,2]
[390884405,1760194148662,-166.66,0.00014252,2]
[390884406,1760194148687,-1404.51644828,0.00014252,2]
[390884407,1760194150350,-500.0,0.00014252,2]
[390884408,1760194152088,-3543.84355172,0.00014252,2]
[390884409,1760194152113,-5021.91200739,0.00014252,2]
[390884411,1760194157038,-2000.0,0.00014252,2]
[390884416,1760194173289,-646.65982734,0.00014252,2]
[390884417,1760194175854,-500.0,0.00014252,2]
[390884418,1760194179403,1500.0,0.0002739,120]
[390884419,1760194180542,-322.6107,0.00014,2]
[390884420,1760194184294,-2084.82216075,0.00014,2]
[390884421,1760194194489,424.86154507,0.0002739,120]
[390884422,1760194203150,-248.71531821,0.00014,2]
[390884423,1760194206507,-302.0,0.00014,2]
[390884424,1760194213859,-41.85182104,0.00014,2]
[390884425,1760194213882,-260.14817896,0.00014251,2]
[390884426,1760194216284,-302.0,0.00014251,2]
[390884433,1760194231957,-569.49,0.00014251,2]
[390884436,1760194232464,-68.36182104,0.00014251,2]
[390884437,1760194232474,-7815.51816527,0.00014252,2]
[390884438,1760194232484,-2671.39786929,0.00014252,2]
[390884439,1760194232495,-7328.59213071,0.00014252,2]
[390884440,1760194232507,-155.48,0.00014253,2]
[390884441,1760194232516,-155.48,0.00014253,2]
[390884442,1760194232526,-180.42,0.00014253,2]
[390884443,1760194232536,-144435.7494818,0.00014263,2]
[390884444,1760194232546,-556.8968615,0.00014263,2]
[390884448,1760194237882,-485.19795619,0.00014251,2]
[390884449,1760194237891,-195.65903368,0.00014251,2]
[390884450,1760194237901,-328822.2721777,0.00014263,2]
[390884451,1760194237910,-2697.160165,0.00014263,2]
[390884452,1760194237920,-198.29151701,0.00014355,2]
[390884453,1760194237929,-151.0,0.00014455,2]
[390884454,1760194237938,-1105.0,0.00014458,2]
[390884455,1760194237947,-1534.0,0.00014458,2]
[390884456,1760194237957,-298.0,0.00014505,2]
[390884457,1760194237966,-298.0,0.00014603,2]
[390884458,1760194237975,-180.42,0.0001461,2]
[390884459,1760194237985,-298.0,0.0001462,2]
[390884460,1760194237994,-321.58623686,0.00014626,2]
[390884461,1760194238003,-417.12263502,0.00014626,2]
[390884462,1760194238013,-646.65982734,0.00014626,2]
[390884463,1760194238022,-500.0,0.00014626,2]
[390884464,1760194238031,-500.0,0.00014626,2]
[390884465,1760194238041,-500.0,0.00014626,2]
[390884466,1760194238051,-500.0,0.00014626,2]
[390884467,1760194238060,-1000.0,0.00014626,2]
[390884468,1760194238069,-1143.48903813,0.00014626,2]
[390884469,1760194238079,-1000.0,0.00014626,2]
[390884470,1760194238088,-1000.0,0.00014626,2]
[390884471,1760194238098,-1000.0,0.00014626,2]
[390884472,1760194238107,-1000.0,0.00014626,2]
[390884473,1760194238117,-1000.0,0.00014626,2]
[390884474,1760194238126,-1000.0,0.00014626,2]
[390884475,1760194238135,-300.0,0.00014626,2]
[390884476,1760194238145,-1000.0,0.00014626,2]
[390884477,1760194238154,-1000.0,0.00014626,2]
[390884478,1760194238164,-1000.0,0.00014626,2]
[390884479,1760194238173,-1000.0,0.00014626,2]
[390884480,1760194238184,-664.84363958,0.00014626,2]
[390884481,1760194238193,-322.6107,0.00014626,2]
[390884482,1760194238202,-317.92214569,0.00014626,2]
[390884483,1760194238212,-500.0,0.00014626,2]
[390884484,1760194238221,-500.0,0.00014626,2]
[390884485,1760194238232,-500.0,0.00014626,2]
[390884486,1760194238242,-500.0,0.00014626,2]
[390884487,1760194238252,-500.0,0.00014626,2]
[390884488,1760194238261,-500.0,0.00014626,2]
[390884489,1760194238270,-500.0,0.00014626,2]
[390884490,1760194238280,-500.0,0.00014626,2]
[390884491,1760194238290,-500.0,0.00014626,2]
[390884492,1760194238300,-500.0,0.00014626,2]
[390884493,1760194238310,-500.0,0.00014626,2]
[390884494,1760194238320,-500.0,0.00014626,2]
[390884495,1760194238329,-500.0,0.00014626,2]
[390884497,1760194238338,-500.0,0.00014626,2]
[390884498,1760194238348,-3988.9362392,0.00014635,2]
[390884499,1760194238358,-23031.9386823,0.00014635,2]
[390884500,1760194238368,-13319.5169359,0.00014635,2]
[390884502,1760194238377,-11613.4973144,0.00014635,2]
[390884503,1760194238386,-151.0,0.00014635,2]
[390884504,1760194238396,-151.0,0.00014635,2]
[390884505,1760194238405,-211.011571,0.00014635,2]
[390884506,1760194238414,-151.0,0.00014635,2]
[390884507,1760194238423,-211.011571,0.00014635,2]
[390884508,1760194238432,-151.0,0.00014635,2]
[390884509,1760194238441,-151.0,0.00014635,2]
[390884510,1760194238450,-151.0,0.00014635,2]
[390884511,1760194238459,-151.0,0.00014635,2]
[390884512,1760194238469,-151.0,0.00014635,2]
[390884513,1760194238478,-151.0,0.00014635,2]
[390884514,1760194238488,-151.0,0.00014635,2]
[390884515,1760194238497,-151.0,0.00014635,2]
[390884516,1760194238507,-211.011571,0.00014635,2]
[390884517,1760194238516,-151.0,0.00014635,2]
[390884518,1760194238526,-211.011571,0.00014635,2]
[390884519,1760194238535,-151.0,0.00014635,2]
[390884520,1760194238546,-151.0,0.00014635,2]
[390884521,1760194238555,-151.0,0.00014635,2]
[390884522,1760194238564,-151.0,0.00014635,2]
[390884523,1760194238578,-151.0,0.00014635,2]
[390884524,1760194238588,-151.0,0.00014635,2]
[390884525,1760194238597,-458.346711,0.00014635,2]
[390884526,1760194238606,-458.346711,0.00014635,2]
[390884527,1760194238616,-458.346711,0.00014635,2]
[390884528,1760194238625,-458.346711,0.00014635,2]
[390884529,1760194238635,-151.0,0.00014635,2]
[390884530,1760194238649,-657.597575,0.00014635,2]
[390884531,1760194238658,-657.597575,0.00014635,2]
[390884532,1760194238667,-657.597575,0.00014635,2]
[390884533,1760194238677,-306.136187,0.00014635,2]
[390884534,1760194238687,-657.597575,0.00014635,2]
[390884535,1760194238697,-306.136187,0.00014635,2]
[390884536,1760194238706,-151.0,0.00014635,2]
[390884537,1760194238716,-306.136187,0.00014635,2]
[390884538,1760194238725,-151.0,0.00014635,2]
[390884539,1760194238735,-306.136187,0.00014635,2]
[390884540,1760194238744,-151.0,0.00014635,2]
[390884541,1760194238754,-151.0,0.00014635,2]
[390884542,1760194238763,-169.365461,0.00014635,2]
[390884543,1760194238772,-151.0,0.00014635,2]
[390884544,1760194238781,-151.0,0.00014635,2]
[390884545,1760194238791,-151.0,0.00014635,2]
[390884546,1760194238801,-169.365461,0.00014635,2]
[390884547,1760194238811,-1708.219992,0.00014635,2]
[390884548,1760194238821,-151.0,0.00014635,2]
[390884549,1760194238831,-151.0,0.00014635,2]
[390884550,1760194238840,-169.365461,0.00014635,2]
[390884551,1760194238851,-1708.219992,0.00014635,2]
[390884552,1760194238860,-151.0,0.00014635,2]
[390884553,1760194238870,-151.0,0.00014635,2]
[390884554,1760194238879,-151.0,0.00014635,2]
[390884555,1760194238889,-169.365461,0.00014635,2]
[390884556,1760194238899,-1708.219992,0.00014635,2]
[390884557,1760194238908,-1708.219992,0.00014635,2]
[390884558,1760194238918,-151.0,0.00014635,2]
[390884559,1760194238927,-151.0,0.00014635,2]
[390884560,1760194238938,-151.0,0.00014635,2]
[390884561,1760194238948,-151.0,0.00014635,2]
[390884562,1760194238957,-151.0,0.00014635,2]
[390884563,1760194238967,-151.0,0.00014635,2]
[390884564,1760194238977,-151.0,0.00014635,2]
[390884565,1760194238986,-176.663127,0.00014635,2]
[390884566,1760194238996,-151.0,0.00014635,2]
[390884567,1760194239006,-284.19522,0.00014635,2]
[390884568,1760194239016,-284.19522,0.00014635,2]
[390884569,1760194239025,-284.19522,0.00014635,2]
[390884570,1760194239035,-284.19522,0.00014635,2]
[390884571,1760194239046,-151.0,0.00014635,2]
[390884572,1760194239056,-151.0,0.00014635,2]
[390884573,1760194239066,-151.0,0.00014635,2]
[390884574,1760194239076,-151.0,0.00014635,2]
[390884575,1760194239085,-151.0,0.00014635,2]
[390884576,1760194239095,-151.0,0.00014635,2]
[390884577,1760194239104,-151.0,0.00014635,2]
[390884578,1760194239114,-151.0,0.00014635,2]
[390884579,1760194239124,-151.0,0.00014635,2]
[390884580,1760194239133,-151.0,0.00014635,2]
[390884581,1760194239143,-378.328279,0.00014635,2]
[390884582,1760194239152,-294.657493,0.00014635,2]
[390884583,1760194239161,-151.0,0.00014635,2]
[390884584,1760194239170,-378.328279,0.00014635,2]
[390884585,1760194239179,-294.657493,0.00014635,2]
[390884586,1760194239188,-284.19522,0.00014641,2]
[390884587,1760194239198,-284.19522,0.00014641,2]
[390884588,1760194239208,-284.19522,0.00014641,2]
[390884589,1760194239217,-284.19522,0.00014641,2]
[390884590,1760194239226,-151.0,0.00014641,2]
[390884591,1760194239235,-151.0,0.00014641,2]
[390884592,1760194239244,-151.0,0.00014641,2]
[390884593,1760194239253,-151.0,0.00014641,2]
[390884594,1760194239262,-151.0,0.00014641,2]
[390884595,1760194239271,-151.0,0.00014641,2]
[390884596,1760194239281,-151.0,0.00014641,2]
[390884597,1760194239291,-151.0,0.00014641,2]
[390884598,1760194239301,-378.328279,0.00014641,2]
[390884599,1760194239311,-294.657493,0.00014641,2]
[390884600,1760194239320,-378.328279,0.00014641,2]
[390884601,1760194239330,-298.0,0.00014641,2]
[390884602,1760194239341,-6610.5619,0.00014691,2]
[390884603,1760194239350,-1123.34827416,0.00014699,2]
[390884604,1760194239360,-298.0,0.000147,2]
[390884605,1760194239369,-2753.73240838,0.000147,2]
[390884606,1760194239379,-657.597575,0.000147,2]
[390884607,1760194239388,-657.597575,0.000147,2]
[390884608,1760194239398,-657.597575,0.000147,2]
[390884609,1760194239407,-306.136187,0.000147,2]
[390884610,1760194239416,-657.597575,0.000147,2]
[390884611,1760194239425,-306.136187,0.000147,2]
[390884612,1760194239434,-151.0,0.000147,2]
[390884613,1760194239443,-306.136187,0.000147,2]
[390884614,1760194239452,-151.0,0.000147,2]
[390884615,1760194239461,-306.136187,0.000147,2]
[390884616,1760194239471,-151.0,0.000147,2]
[390884617,1760194239480,-169.365461,0.000147,2]
[390884618,1760194239489,-151.0,0.000147,2]
[390884619,1760194239498,-151.0,0.000147,2]
[390884620,1760194239508,-151.0,0.000147,2]
[390884621,1760194239517,-169.365461,0.000147,2]
[390884622,1760194239527,-1708.219992,0.000147,2]
[390884623,1760194239536,-151.0,0.000147,2]
[390884624,1760194239547,-151.0,0.000147,2]
[390884625,1760194239555,-169.365461,0.000147,2]
[390884626,1760194239565,-1708.219992,0.000147,2]
[390884627,1760194239579,-156.906568,0.000147,2]
[390884628,1760194239588,-151.0,0.000147,2]
[390884629,1760194239597,-151.0,0.000147,2]
[390884630,1760194239606,-169.365461,0.000147,2]
[390884631,1760194239616,-1708.219992,0.000147,2]
[390884632,1760194239625,-1708.219992,0.000147,2]
[390884633,1760194239932,-151.0,0.000147,2]
[390884634,1760194239941,-151.0,0.000147,2]
[390884635,1760194239951,-151.0,0.000147,2]
[390884636,1760194239961,-151.0,0.000147,2]
[390884637,1760194239970,-151.0,0.000147,2]
[390884638,1760194239979,-151.0,0.000147,2]
[390884639,1760194239988,-151.0,0.000147,2]
[390884640,1760194239997,-151.0,0.000147,2]
[390884641,1760194240007,-243.0,0.00014713,2]
[390884642,1760194240016,-186.47042732,0.00014713,2]
[390884643,1760194240025,-298.0,0.00014717,2]
[390884644,1760194240035,-2753.73240836,0.00014722,2]
[390884645,1760194240045,-2753.73240836,0.00014744,2]
[390884646,1760194240054,-842.36109832,0.00014751,2]
[390884647,1760194240063,-298.0,0.00014753,2]
[390884648,1760194240073,-2753.73240836,0.00014767,2]
[390884649,1760194240083,-284.19522,0.00014767,2]
[390884650,1760194240092,-284.19522,0.00014767,2]
[390884651,1760194240101,-284.19522,0.00014767,2]
[390884652,1760194240111,-284.19522,0.00014767,2]
[390884653,1760194240121,-240.025319,0.00014767,2]
[390884654,1760194240130,-151.0,0.00014767,2]
[390884655,1760194240139,-151.0,0.00014767,2]
[390884656,1760194240147,-151.0,0.00014767,2]
[390884657,1760194240156,-266.100359,0.00014767,2]
[390884658,1760194240166,-151.0,0.00014767,2]
[390884659,1760194240175,-151.0,0.00014767,2]
[390884660,1760194240184,-151.0,0.00014767,2]
[390884661,1760194240193,-378.328279,0.00014767,2]
[390884662,1760194240202,-294.657493,0.00014767,2]
[390884663,1760194240211,-378.328279,0.00014767,2]
[390884664,1760194240220,-200.0,0.00014779,2]
[390884665,1760194240229,-298.0,0.00014779,2]
[390884666,1760194240239,-298.0,0.00014785,2]
[390884668,1760194240248,-2753.73240836,0.00014789,2]
[390884669,1760194240258,-298.0,0.0001479,2]
[390884670,1760194240267,-4051.1803,0.00014791,2]
[390884671,1760194240276,-2131.8348,0.00014791,2]
[390884672,1760194240285,-233.2136,0.00014791,2]
[390884674,1760194240295,-278.4271,0.00014791,2]
[390884675,1760194240304,-151.0,0.00014791,2]
[390884676,1760194240313,-1025.552759,0.00014791,2]
[390884677,1760194240323,-1025.552759,0.00014791,2]
[390884679,1760194240332,-1025.552759,0.00014791,2]
[390884680,1760194240341,-151.0,0.00014791,2]
[390884681,1760194240350,-1025.552759,0.00014791,2]
[390884682,1760194240360,-151.0,0.00014791,2]
[390884683,1760194240369,-881.341442,0.00014791,2]
[390884684,1760194240379,-881.341442,0.00014791,2]
[390884685,1760194240388,-881.341442,0.00014791,2]
[390884686,1760194240397,-151.0,0.00014791,2]
[390884687,1760194240407,-881.341442,0.00014791,2]
[390884688,1760194240416,-151.0,0.00014791,2]
[390884689,1760194240425,-151.0,0.00014791,2]
[390884690,1760194240434,-151.0,0.00014791,2]
[390884691,1760194240443,-151.0,0.00014791,2]
[390884692,1760194240452,-215.976873,0.00014791,2]
[390884693,1760194240462,-151.0,0.00014791,2]
[390884694,1760194240471,-151.0,0.00014791,2]
[390884695,1760194240481,-152.575854,0.00014791,2]
[390884696,1760194240490,-274.056773,0.00014791,2]
[390884697,1760194240499,-274.056773,0.00014791,2]
[390884698,1760194240508,-274.056773,0.00014791,2]
[390884699,1760194240518,-274.056773,0.00014791,2]
[390884700,1760194240529,-242.308826,0.00014791,2]
[390884701,1760194240539,-242.308826,0.00014791,2]
[390884702,1760194240549,-242.308826,0.00014791,2]
[390884703,1760194240558,-242.308826,0.00014791,2]
[390884704,1760194240572,-151.0,0.00014791,2]
[390884705,1760194240582,-151.548541,0.00014791,2]
[390884706,1760194240591,-151.0,0.00014791,2]
[390884707,1760194240600,-151.0,0.00014791,2]
[390884708,1760194240610,-151.0,0.00014791,2]
[390884709,1760194240620,-151.0,0.00014791,2]
[390884710,1760194240629,-151.0,0.00014791,2]
[390884711,1760194240639,-151.0,0.00014791,2]
[390884712,1760194240648,-151.0,0.00014791,2]
[390884713,1760194240657,-151.0,0.00014791,2]
[390884714,1760194240666,-151.0,0.00014791,2]
[390884715,1760194240676,-151.0,0.00014791,2]
[390884716,1760194240685,-151.0,0.00014791,2]
[390884717,1760194240694,-151.0,0.00014791,2]
[390884718,1760194240704,-151.0,0.00014791,2]
[390884719,1760194240713,-151.0,0.00014791,2]
[390884720,1760194240723,-151.0,0.00014791,2]
[390884721,1760194240732,-151.0,0.00014791,2]
[390884722,1760194240741,-979.58055,0.00014791,2]
[390884723,1760194240751,-979.58055,0.00014791,2]
[390884724,1760194240760,-979.58055,0.00014791,2]
[390884725,1760194240769,-979.58055,0.00014791,2]
[390884726,1760194240778,-979.58055,0.00014791,2]
[390884727,1760194240787,-979.58055,0.00014791,2]
[390884728,1760194240798,-979.58055,0.00014791,2]
[390884729,1760194240807,-979.58055,0.00014791,2]
[390884730,1760194240816,-151.0,0.00014791,2]
[390884731,1760194240826,-151.0,0.00014791,2]
[390884732,1760194240835,-151.0,0.00014791,2]
[390884733,1760194240844,-151.0,0.00014791,2]
[390884734,1760194240854,-151.0,0.00014791,2]
[390884735,1760194240864,-151.0,0.00014791,2]
[390884736,1760194240874,-259.160155,0.00014791,2]
[390884737,1760194240883,-151.0,0.00014791,2]
[390884738,1760194240892,-151.0,0.00014791,2]
[390884739,1760194240901,-263.604445,0.00014791,2]
[390884740,1760194240910,-263.604445,0.00014791,2]
[390884741,1760194240919,-151.0,0.00014791,2]
[390884742,1760194240928,-151.0,0.00014791,2]
[390884743,1760194240937,-263.604445,0.00014791,2]
[390884744,1760194240947,-263.604445,0.00014791,2]
[390884745,1760194240956,-151.0,0.00014791,2]
[390884746,1760194240965,-161.64607538,0.00014791,2]
[390884747,1760194240975,-263.604445,0.00014791,2]
[390884748,1760194240985,-263.604445,0.00014791,2]
[390884749,1760194240994,-263.604445,0.00014791,2]
[390884750,1760194241004,-263.604445,0.00014791,2]
[390884751,1760194241014,-769.145586,0.00014791,2]
[390884752,1760194241023,-769.145586,0.00014791,2]
[390884753,1760194241032,-151.0,0.00014791,2]
[390884754,1760194241043,-151.0,0.00014791,2]
[390884755,1760194241053,-769.145586,0.00014791,2]
[390884756,1760194241063,-769.145586,0.00014791,2]
[390884757,1760194241073,-151.0,0.00014791,2]
[390884758,1760194241083,-769.145586,0.00014791,2]
[390884759,1760194241092,-769.145586,0.00014791,2]
[390884760,1760194241101,-769.145586,0.00014791,2]
[390884761,1760194241111,-769.145586,0.00014791,2]
[390884762,1760194241120,-151.0,0.00014791,2]
[390884763,1760194241130,-151.0,0.00014791,2]
[390884764,1760194241139,-151.0,0.00014791,2]
[390884765,1760194241149,-151.0,0.00014791,2]
[390884766,1760194241158,-151.0,0.00014791,2]
[390884767,1760194241168,-151.0,0.00014791,2]
[390884768,1760194241177,-151.0,0.00014791,2]
[390884769,1760194241186,-151.0,0.00014791,2]
[390884770,1760194241195,-151.0,0.00014791,2]
[390884771,1760194241205,-273.113847,0.00014791,2]
[390884772,1760194241214,-151.0,0.00014791,2]
[390884773,1760194241223,-286.042238,0.00014791,2]
[390884774,1760194241233,-406.172221,0.00014791,2]
[390884775,1760194241242,-406.172221,0.00014791,2]
[390884776,1760194241252,-151.0,0.00014791,2]
[390884777,1760194241261,-151.0,0.00014791,2]
[390884778,1760194241270,-406.172221,0.00014791,2]
[390884779,1760194241280,-406.172221,0.00014791,2]
[390884780,1760194241289,-151.0,0.00014791,2]
[390884781,1760194241300,-151.0,0.00014791,2]
[390884782,1760194241310,-406.172221,0.00014791,2]
[390884783,1760194241330,-406.172221,0.00014791,2]
[390884784,1760194241341,-151.0,0.00014791,2]
[390884785,1760194241351,-151.0,0.00014791,2]
[390884786,1760194241361,-406.172221,0.00014791,2]
[390884787,1760194241370,-406.172221,0.00014791,2]
[390884788,1760194241380,-151.0,0.00014791,2]
[390884789,1760194241390,-151.0,0.00014791,2]
[390884790,1760194241399,-151.0,0.00014791,2]
[390884791,1760194241410,-298.603836,0.00014791,2]
[390884792,1760194241419,-151.0,0.00014791,2]
[390884793,1760194241428,-151.0,0.00014791,2]
[390884794,1760194241438,-151.88386,0.00014791,2]
[390884795,1760194241448,-337.012755,0.00014791,2]
[390884796,1760194241458,-337.012755,0.00014791,2]
[390884797,1760194241467,-151.0,0.00014791,2]
[390884798,1760194241477,-151.0,0.00014791,2]
[390884799,1760194241487,-337.012755,0.00014791,2]
[390884800,1760194241496,-337.012755,0.00014791,2]
[390884801,1760194241506,-337.012755,0.00014791,2]
[390884802,1760194241516,-337.012755,0.00014791,2]
[390884803,1760194241525,-370.418385,0.00014791,2]
[390884804,1760194241535,-337.012755,0.00014791,2]
[390884805,1760194241546,-370.418385,0.00014791,2]
[390884806,1760194241555,-337.012755,0.00014791,2]
[390884807,1760194241567,-370.418385,0.00014791,2]
[390884808,1760194241583,-370.418385,0.00014791,2]
[390884809,1760194241593,-370.418385,0.00014791,2]
[390884810,1760194241602,-370.418385,0.00014791,2]
[390884811,1760194241612,-1032.246098,0.00014791,2]
[390884812,1760194241622,-1032.246098,0.00014791,2]
[390884813,1760194241631,-370.418385,0.00014791,2]
[390884814,1760194241640,-370.418385,0.00014791,2]
[390884815,1760194241651,-151.0,0.00014791,2]
[390884816,1760194241661,-151.0,0.00014791,2]
[390884817,1760194241670,-1032.246098,0.00014791,2]
[390884818,1760194241679,-1032.246098,0.00014791,2]
[390884819,1760194241689,-151.0,0.00014791,2]
[390884820,1760194241699,-151.0,0.00014791,2]
[390884821,1760194241709,-1032.246098,0.00014791,2]
[390884822,1760194241719,-151.0,0.00014791,2]
[390884823,1760194241733,-151.0,0.00014791,2]
[390884824,1760194241743,-1032.246098,0.00014791,2]
[390884825,1760194241752,-151.0,0.00014791,2]
[390884826,1760194241762,-1032.246098,0.00014791,2]
[390884827,1760194241772,-151.0,0.00014791,2]
[390884828,1760194241781,-1032.246098,0.00014791,2]
[390884829,1760194241791,-151.0,0.00014791,2]
[390884830,1760194241803,-152.059864,0.00014791,2]
[390884831,1760194241813,-151.0,0.00014791,2]
[390884832,1760194241823,-151.0,0.00014791,2]
[390884833,1760194241833,-151.0,0.00014791,2]
[390884834,1760194241842,-151.0,0.00014791,2]
[390884835,1760194241852,-151.0,0.00014791,2]
[390884836,1760194241862,-151.0,0.00014791,2]
[390884837,1760194241872,-151.0,0.00014791,2]
[390884838,1760194241882,-151.0,0.00014791,2]
[390884839,1760194241891,-151.0,0.00014791,2]
[390884840,1760194241901,-151.0,0.00014791,2]
[390884841,1760194241911,-151.0,0.00014791,2]
[390884842,1760194241921,-151.0,0.00014791,2]
[390884843,1760194241930,-226.107391,0.00014791,2]
[390884844,1760194241940,-255.390015,0.00014791,2]
[390884845,1760194241949,-151.0,0.00014791,2]
[390884846,1760194241959,-200.50154,0.00014791,2]
[390884847,1760194241969,-151.0,0.00014791,2]
[390884848,1760194241979,-151.0,0.00014791,2]
[390884849,1760194241990,-151.0,0.00014791,2]
[390884850,1760194242000,-151.0,0.00014791,2]
[390884851,1760194242010,-151.0,0.00014791,2]
[390884852,1760194242021,-151.0,0.00014791,2]
[390884853,1760194242031,-151.0,0.00014791,2]
[390884854,1760194242041,-151.0,0.00014791,2]
[390884855,1760194242056,-151.0,0.00014791,2]
[390884856,1760194242066,-151.0,0.00014791,2]
[390884857,1760194242076,-151.0,0.00014791,2]
[390884858,1760194242086,-151.0,0.00014791,2]
[390884859,1760194242096,-151.0,0.00014791,2]
[390884860,1760194242106,-167.282536,0.00014791,2]
[390884861,1760194242115,-363.470597,0.00014791,2]
[390884862,1760194242130,-167.282536,0.00014791,2]
[390884863,1760194242140,-151.0,0.00014791,2]
[390884864,1760194242150,-363.470597,0.00014791,2]
[390884865,1760194242160,-167.282536,0.00014791,2]
[390884866,1760194242170,-151.0,0.00014791,2]
[390884867,1760194242179,-363.470597,0.00014791,2]
[390884868,1760194242190,-151.0,0.00014791,2]
[390884869,1760194242201,-167.282536,0.00014791,2]
[390884870,1760194242211,-253.34768,0.00014791,2]
[390884871,1760194242221,-167.282536,0.00014791,2]